bitfinex-derivatives/quotes_BTCF0:USTF0_20250505
["timestamp","ask_amount","ask_price","bid_price","bid_amount"]
[1746435268066,0.053,94596.0,94595.0,0.32170852]
[1746435268366,0.003,94596.0,94595.0,0.38390852]
[1746435268957,0.06408,94612.0,94595.0,0.52820352]
[1746435269162,0.26475338,94610.0,94609.0,0.9329858]
[1746435269761,0.32883338,94610.0,94609.0,0.9329858]
[1746435269956,0.32883338,94610.0,94609.0,0.9985858]
[1746435270162,0.54021688,94610.0,94609.0,1.1185858]
[1746435270361,0.64221688,94610.0,94609.0,1.1185858]
[1746435270565,0.57813688,94610.0,94609.0,1.1185858]
[1746435270765,0.64321688,94610.0,94609.0,1.1185858]
[1746435272064,0.3784635,94610.0,94609.0,1.1185858]
[1746435273067,0.3143835,94610.0,94609.0,1.1185858]
[1746435273266,0.3784635,94610.0,94609.0,1.1185858]
[1746435274369,0.3284635,94610.0,94609.0,1.1185858]
[1746435275275,0.11708,94610.0,94609.0,1.1185858]
[1746435275468,0.3284635,94610.0,94609.0,1.1185858]
[1746435280671,0.4284635,94610.0,94609.0,1.1185858]
[1746435288170,0.4616635,94610.0,94609.0,1.1185858]
[1746435294978,0.4948635,94610.0,94609.0,1.1185858]
[1746435296383,0.4953835,94610.0,94609.0,1.1185858]
[1746435297090,0.4953835,94610.0,94609.0,0.4808]
[1746435297279,0.60108113,94610.0,94609.0,0.4808]
[1746435298083,0.60108113,94610.0,94609.0,0.6921858]
[1746435299380,0.61158855,94610.0,94609.0,0.6921858]
[1746435299577,0.60108113,94610.0,94609.0,0.6921858]
[1746435300283,0.53648113,94610.0,94609.0,0.12]
[1746435300581,0.53648113,94610.0,94595.0,0.3608]
[1746435300582,0.3114081,94599.0,94595.0,0.3608]
[1746435300775,0.3614081,94599.0,94595.0,0.3608]
[1746435301177,0.46710573,94599.0,94598.0,0.5297]
[1746435301586,0.52890573,94599.0,94598.0,0.5297]
[1746435301978,0.53090573,94599.0,94598.0,0.5297]
[1746435302176,0.53090573,94599.0,94598.0,0.4097]
[1746435302377,0.53190573,94599.0,94598.0,0.4097]
[1746435302672,0.2114148,94596.0,94595.0,0.3608]
[1746435302872,0.2760148,94596.0,94595.0,0.3608]
[1746435303184,0.2760148,94596.0,94595.0,0.4808]
[1746435303387,0.38172472,94596.0,94595.0,0.4808]
[1746435304079,0.38472472,94596.0,94595.0,0.4808]
[1746435310989,0.32012472,94596.0,94595.0,0.4808]
[1746435311189,0.38468472,94596.0,94595.0,0.4808]
[1746435312281,0.43468472,94596.0,94595.0,0.4808]
[1746435316690,0.46518472,94596.0,94595.0,0.4808]
[1746435323000,0.46518472,94596.0,94595.0,0.5111]
[1746435324592,0.49688472,94596.0,94595.0,0.5111]
[1746435325098,0.85768472,94596.0,94595.0,0.1503]
[1746435325303,0.74626992,94596.0,94572.0,0.21304478]
[1746435325607,0.3643079,94582.0,94581.0,0.0312]
[1746435325896,0.3788679,94582.0,94581.0,0.0312]
[1746435326092,0.4788679,94582.0,94581.0,0.1512]
[1746435326293,0.48459402,94582.0,94581.0,0.1512]
[1746435327402,0.58459402,94582.0,94581.0,0.1512]
[1746435327603,0.58459402,94582.0,94581.0,0.2166]
[1746435327802,0.58659402,94582.0,94581.0,0.2166]
[1746435328004,0.58759402,94582.0,94581.0,0.2166]
[1746435329495,0.59547334,94582.0,94581.0,0.2166]
[1746435329695,0.59547334,94582.0,94581.0,0.4280483]
[1746435330294,0.54547334,94582.0,94581.0,0.4280483]
[1746435335210,0.59547334,94582.0,94581.0,0.4280483]
[1746435337709,0.49547334,94582.0,94581.0,0.4280483]
[1746435338513,0.59547334,94582.0,94581.0,0.4080483]
[1746435338914,0.49547334,94582.0,94581.0,0.4080483]
[1746435339722,0.59547334,94582.0,94581.0,0.4080483]
[1746435347822,0.59547334,94582.0,94581.0,0.39812748]
[1746435351026,0.49547334,94582.0,94581.0,0.39812748]
[1746435352226,0.59547334,94582.0,94581.0,0.39812748]
[1746435354121,0.53091334,94582.0,94581.0,0.39812748]
[1746435354326,0.59507334,94582.0,94581.0,0.39812748]
[1746435355124,0.06087932,94582.0,94581.0,0.39812748]
[1746435355325,0.4136521,94599.0,94597.0,0.2114103]
[1746435355326,0.06416,94599.0,94597.0,0.2114103]
[1746435355632,0.031,94598.0,94597.0,0.2114103]
[1746435355926,0.031,94598.0,94597.0,0.5722103]
[1746435356120,0.031,94598.0,94597.0,0.6922103]
[1746435356319,0.24156683,94604.0,94603.0,0.2113992]
[1746435356924,0.45296373,94604.0,94603.0,0.2113992]
[1746435357114,0.45296373,94604.0,94603.0,0.3313992]
[1746435358125,0.45496373,94604.0,94603.0,0.3323992]
[1746435358524,0.45596373,94604.0,94603.0,0.3323992]
[1746435360924,0.22232997,94604.0,94603.0,0.3323992]
[1746435361331,0.22232997,94604.0,94603.0,0.7420992]
[1746435364429,0.01093307,94604.0,94603.0,0.7420992]
[1746435365020,0.22232997,94604.0,94603.0,0.7420992]
[1746435371732,0.22232997,94604.0,94603.0,0.7726992]
[1746435373239,0.22232997,94604.0,94603.0,0.8034992]
[1746435378240,0.22232997,94604.0,94603.0,0.7420992]
[1746435378840,0.28352997,94604.0,94603.0,0.7420992]
[1746435383241,0.38352997,94604.0,94603.0,0.7420992]
[1746435384243,0.28352997,94604.0,94603.0,0.7420992]
[1746435387044,0.28352997,94604.0,94603.0,0.8047992]
[1746435388840,0.28352997,94604.0,94603.0,1.1655992]
[1746435391046,0.36847907,94604.0,94603.0,1.1655992]
[1746435395849,0.36847907,94604.0,94603.0,0.8047992]
[1746435396042,0.36847907,94604.0,94603.0,1.1655992]
[1746435397444,0.28352997,94604.0,94603.0,1.1655992]
[1746435399155,0.28352997,94604.0,94603.0,0.8047992]
[1746435399353,0.28352997,94604.0,94603.0,1.1655992]
[1746435407863,0.07213307,94604.0,94603.0,1.1028992]
[1746435408052,0.07213307,94604.0,94603.0,1.1351992]
[1746435408756,0.28352997,94604.0,94603.0,1.1679992]
[1746435409258,0.07213307,94604.0,94603.0,1.1679992]
[1746435409758,0.28352997,94604.0,94603.0,1.1679992]
[1746435410863,0.28352997,94604.0,94603.0,1.1998992]
[1746435415662,0.04203307,94604.0,94603.0,1.1998992]
[1746435420064,0.04203307,94604.0,94603.0,0.8390992]
[1746435420256,0.25342997,94604.0,94603.0,1.1998992]
[1746435420456,0.31702997,94604.0,94603.0,1.1998992]
[1746435422164,0.31702997,94604.0,94603.0,1.1679992]
[1746435423060,0.10563307,94604.0,94603.0,1.1679992]
[1746435424972,0.31702997,94604.0,94603.0,1.1679992]
[1746435430367,0.41702997,94604.0,94603.0,1.1028992]
[1746435430568,0.46702997,94604.0,94603.0,1.1028992]
[1746435431667,0.46702997,94604.0,94603.0,0.6931992]
[1746435433066,0.15563307,94604.0,94603.0,0.6931992]
[1746435433263,0.04203307,94604.0,94603.0,0.7543992]
[1746435435879,0.04203307,94604.0,94603.0,0.7864992]
[1746435445485,0.04203307,94604.0,94603.0,0.4256992]
[1746435445776,0.04203307,94604.0,94603.0,0.7864992]
[1746435452582,7e-08,94604.0,94603.0,0.7864992]
[1746435452775,0.05771439,94605.0,94604.0,0.2113969]
[1746435452975,0.51057858,94608.0,94607.0,0.2113902]
[1746435453183,0.33707518,94608.0,94607.0,0.2113902]
[1746435453775,0.33707518,94608.0,94607.0,0.2427902]
[1746435454180,0.33807518,94608.0,94607.0,0.3627902]
[1746435454575,0.0324,94617.0,94616.0,0.2113701]
[1746435454775,0.0324,94617.0,94616.0,0.5721701]
[1746435455073,0.0324,94617.0,94616.0,0.6921701]
[1746435455283,0.04048296,94617.0,94616.0,0.7529701]
[1746435455681,0.00808296,94617.0,94616.0,0.7529701]
[1746435455881,0.033,94622.0,94621.0,0.2113589]
[1746435456183,0.033,94622.0,94621.0,0.5721589]
[1746435456584,0.033,94622.0,94621.0,0.6329589]
[1746435457182,0.033,94622.0,94621.0,0.7529589]
[1746435457380,0.036,94622.0,94621.0,0.7529589]
[1746435457983,0.037,94622.0,94621.0,0.7549589]
[1746435458180,0.04490285,94622.0,94621.0,1.1646589]
[1746435458491,0.01190285,94622.0,94621.0,1.1646589]
[1746435459376,0.04430285,94622.0,94621.0,1.1646589]
[1746435469590,0.04430285,94622.0,94621.0,1.5254589]
[1746435481802,0.51041069,94624.0,94623.0,0.2113545]
[1746435482004,0.06428,94643.0,94629.0,0.2113411]
[1746435482301,0.30364146,94630.0,94629.0,0.6921411]
[1746435483002,0.30364146,94630.0,94629.0,0.7884411]
[1746435483204,0.30464146,94630.0,94629.0,0.7904411]
[1746435484401,0.0090497,94630.0,94629.0,0.7904411]
[1746435485007,0.0130497,94630.0,94629.0,0.7904411]
[1746435486100,0.0130497,94630.0,94629.0,1.1512411]
[1746435487504,0.0130497,94630.0,94629.0,1.5609411]
[1746435496215,0.0461497,94630.0,94629.0,1.5279411]
[1746435496916,0.0461497,94630.0,94629.0,1.4957411]
[1746435506922,0.0461497,94630.0,94629.0,1.4858264]
[1746435515312,0.0461497,94630.0,94629.0,1.5168264]
[1746435522727,0.0130497,94630.0,94629.0,1.5168264]
[1746435532434,0.0440497,94630.0,94629.0,1.5168264]
[1746435589572,0.0130497,94630.0,94629.0,1.5168264]
[1746435598675,0.0439497,94630.0,94629.0,1.5168264]
[1746435602170,0.052809,94676.0,94655.0,0.211283]
[1746435602376,0.065,94656.0,94655.0,0.572083]
[1746435602576,0.270648,94656.0,94655.0,0.572083]
[1746435603174,0.270648,94656.0,94655.0,0.692083]
[1746435603375,0.279648,94656.0,94655.0,0.692083]
[1746435604571,0.215648,94656.0,94655.0,0.692083]
[1746435604773,0.216648,94656.0,94655.0,0.696083]
[1746435605284,0.1491501,94656.0,94655.0,0.696083]
[1746435605577,0.0491501,94656.0,94655.0,0.696083]
[1746435605774,0.0491501,94656.0,94655.0,0.728483]
[1746435606177,0.0491501,94656.0,94655.0,0.696083]
[1746435613178,0.0491501,94656.0,94655.0,1.056883]
[1746435624476,0.15145288,94656.0,94655.0,1.056883]
[1746435627489,0.0491501,94656.0,94655.0,1.056883]
[1746435635895,0.0491501,94656.0,94655.0,1.088183]
[1746435640404,0.0491501,94656.0,94655.0,1.077603]
[1746435652695,0.0189501,94656.0,94655.0,1.077603]
[1746435658513,0.0189501,94656.0,94655.0,1.108603]
[1746435660416,0.0792501,94656.0,94655.0,1.108603]
[1746435667316,0.0528252,94648.0,94645.0,0.6738267]
[1746435667509,0.2113031,94646.0,94645.0,0.6738267]
[1746435667919,0.2754031,94646.0,94645.0,0.7046267]
[1746435668221,0.2113188,94639.0,94638.0,0.2113089]
[1746435668613,0.2103188,94639.0,94638.0,0.2113089]
[1746435668814,0.31197622,94639.0,94638.0,0.2113089]
[1746435669014,0.37717622,94639.0,94638.0,0.2113089]
[1746435670213,0.58684023,94639.0,94638.0,0.001]
[1746435670412,0.65152023,94639.0,94638.0,0.212321]
[1746435671125,0.65252023,94639.0,94638.0,0.212321]
[1746435676029,0.54685622,94639.0,94638.0,0.212321]
[1746435685131,0.24053742,94639.0,94638.0,0.212321]
[1746435685337,0.17533742,94639.0,94638.0,0.212321]
[1746435685536,0.38665622,94639.0,94638.0,0.212321]
[1746435685727,0.38665622,94639.0,94638.0,0.243521]
[1746435686226,0.45105622,94639.0,94638.0,0.363521]
[1746435688929,0.45093622,94639.0,94638.0,0.363521]
[1746435689127,0.38637622,94639.0,94638.0,0.363521]
[1746435689332,0.45093622,94639.0,94638.0,0.363521]
[1746435689638,0.81173622,94639.0,94638.0,0.363521]
[1746435696143,0.45093622,94639.0,94638.0,0.363521]
[1746435696344,0.81173622,94639.0,94638.0,0.363521]
[1746435700444,0.45093622,94639.0,94638.0,0.363521]
[1746435700742,0.81173622,94639.0,94638.0,0.363521]
[1746435701442,0.74717622,94639.0,94638.0,0.363521]
[1746435701647,0.81173622,94639.0,94638.0,0.363521]
[1746435702444,0.74717622,94639.0,94638.0,0.363521]
[1746435702635,0.81173622,94639.0,94638.0,0.363521]
[1746435702942,0.45093622,94639.0,94638.0,0.363521]
[1746435703144,0.81173622,94639.0,94638.0,0.363521]
[1746435703331,0.45093622,94639.0,94638.0,0.363521]
[1746435703536,0.81173622,94639.0,94638.0,0.363521]
[1746435706152,0.81173622,94639.0,94638.0,0.394621]
[1746435715153,0.45093622,94639.0,94638.0,0.394621]
[1746435718152,0.23961742,94639.0,94638.0,0.394621]
[1746435718356,0.41833622,94639.0,94638.0,0.394621]
[1746435721548,0.44873622,94639.0,94638.0,0.394621]
[1746435723249,0.44873622,94639.0,94638.0,0.363521]
[1746435723557,0.54873622,94639.0,94638.0,0.363521]
[1746435725961,0.54873622,94639.0,94638.0,0.395721]
[1746435727653,0.51833622,94639.0,94638.0,0.395721]
[1746435727953,0.17521742,94639.0,94638.0,0.395721]
[1746435728257,0.06956,94639.0,94638.0,0.395721]
[1746435728458,0.005,94639.0,94638.0,0.395721]
[1746435731161,0.005,94639.0,94638.0,0.756521]
[1746435734059,0.005,94639.0,94638.0,0.395721]
[1746435734269,0.005,94639.0,94638.0,0.756521]
[1746435737665,0.2163188,94639.0,94638.0,0.363521]
[1746435738561,0.45498404,94639.0,94638.0,0.363521]
[1746435743562,0.42198404,94639.0,94638.0,0.363521]
[1746435743765,0.45438404,94639.0,94638.0,0.363521]
[1746435744270,0.45438404,94639.0,94638.0,0.243521]
[1746435745270,0.45438404,94639.0,94638.0,0.363521]
[1746435752784,0.51850404,94639.0,94638.0,0.363521]
[1746435753575,0.55150404,94639.0,94638.0,0.363521]
[1746435761397,0.55150404,94639.0,94638.0,0.393921]
[1746435768798,0.51910404,94639.0,94638.0,0.393921]
[1746435779099,0.54960404,94639.0,94638.0,0.393921]
[1746435779703,0.58020404,94639.0,94638.0,0.393921]
[1746435786115,0.51608404,94639.0,94638.0,0.393921]
[1746435786303,0.38606404,94639.0,94638.0,0.393921]
[1746435788908,0.17474524,94639.0,94638.0,0.393921]
[1746435789098,0.005,94639.0,94638.0,0.393921]
[1746435793207,0.2163188,94639.0,94638.0,0.393921]
[1746435796010,0.2163188,94639.0,94638.0,0.1826]
[1746435796213,0.3163188,94639.0,94638.0,0.1826]
[1746435797016,0.4111188,94639.0,94638.0,0.1826]
[1746435797515,0.4111188,94639.0,94638.0,0.393921]
[1746435800021,0.3789188,94639.0,94638.0,0.393921]
[1746435800510,0.3163188,94639.0,94638.0,0.393921]
[1746435802721,0.2163188,94639.0,94638.0,0.393921]
[1746435810516,0.2470188,94639.0,94638.0,0.393921]
[1746435815426,0.2470188,94639.0,94638.0,0.363521]
[1746435816925,0.56736404,94639.0,94638.0,0.121]
[1746435817123,0.2113612,94620.0,94617.0,0.0314]
[1746435817318,0.2613612,94620.0,94617.0,0.0314]
[1746435818123,0.2613612,94620.0,94619.0,0.4808]
[1746435818328,0.05,94620.0,94619.0,0.6921634]
[1746435818535,0.211357,94622.0,94621.0,0.2113567]
[1746435819127,0.211357,94622.0,94621.0,0.3313567]
[1746435819730,0.212357,94622.0,94621.0,0.3323567]
[1746435819929,0.002,94622.0,94621.0,0.3323567]
[1746435825732,0.2133567,94622.0,94621.0,0.3323567]
[1746435826534,0.2433567,94622.0,94621.0,0.3323567]
[1746435831640,0.2433567,94622.0,94621.0,0.3644567]
[1746435832731,0.032,94622.0,94621.0,0.3644567]
[1746435833235,0.2433567,94622.0,94621.0,0.3644567]
[1746435833650,0.002,94622.0,94621.0,0.3644567]
[1746435834043,0.2133567,94622.0,94621.0,0.3644567]
[1746435834551,0.002,94622.0,94621.0,0.3644567]
[1746435838441,0.002,94622.0,94621.0,0.3948567]
[1746435848455,0.002,94622.0,94621.0,0.7556567]
[1746435869366,0.002,94622.0,94621.0,0.7235567]
[1746435882188,0.002,94622.0,94621.0,0.7556567]
[1746435900101,0.002,94622.0,94621.0,0.3948567]
[1746435937919,0.24396006,94622.0,94621.0,0.3948567]
[1746435938539,0.45531676,94622.0,94621.0,0.3948567]
[1746435938826,0.24396006,94622.0,94621.0,0.3948567]
[1746435939029,0.30696006,94622.0,94621.0,0.3948567]
[1746435940929,0.30696006,94622.0,94621.0,0.3627567]
[1746435943832,1.12912828,94622.0,94600.0,0.3608]
[1746435944028,0.211388,94608.0,94593.0,0.4097]
[1746435944224,0.43636611,94608.0,94605.0,0.2113946]
[1746435944434,0.46756611,94608.0,94606.0,0.0309]
[1746435944637,0.57325033,94608.0,94606.0,0.0309]
[1746435944931,0.61454713,94608.0,94606.0,0.2422923]
[1746435945327,0.61454713,94608.0,94607.0,0.0324855]
[1746435945527,0.61454713,94608.0,94607.0,0.2438757]
[1746435946135,0.61654713,94608.0,94607.0,0.2458757]
[1746435946826,0.61754713,94608.0,94607.0,0.2458757]
[1746435948726,0.50676902,94608.0,94607.0,0.2458757]
[1746435952240,0.50676902,94608.0,94607.0,0.3658757]
[1746435957139,0.47556902,94608.0,94607.0,0.3658757]
[1746435957526,0.50636902,94608.0,94607.0,0.3658757]
[1746435960539,0.47556902,94608.0,94607.0,0.3658757]
[1746435961533,0.50596902,94608.0,94607.0,0.3658757]
[1746435963146,0.0110968,94608.0,94607.0,0.3658757]
[1746435964038,0.0110968,94608.0,94607.0,0.37652325]
[1746435964239,0.0110968,94608.0,94607.0,0.3658757]
[1746435964538,0.0110968,94608.0,94607.0,0.3986757]
[1746435966736,0.0110968,94608.0,94607.0,0.40906094]
[1746435980252,0.24196006,94618.0,94617.0,0.2113679]
[1746435980552,0.24196006,94618.0,94617.0,0.5721679]
[1746435981345,0.24296006,94618.0,94617.0,0.7551679]
[1746435982051,0.24496006,94618.0,94617.0,0.7551679]
[1746435982855,0.003,94618.0,94617.0,0.7551679]
[1746436003972,0.0528201,94657.0,94617.0,0.5438]
[1746436004259,0.1,94638.0,94637.0,0.2113232]
[1746436004465,0.0642,94639.0,94638.0,0.211321]
[1746436004665,0.0322,94639.0,94638.0,0.211321]
[1746436005053,0.0322,94639.0,94638.0,0.331321]
[1746436005968,0.001,94639.0,94638.0,0.331321]
[1746436006260,0.0322,94649.0,94642.0,0.0528278]
[1746436006466,0.0322,94649.0,94648.0,0.5720987]
[1746436007055,0.0623,94649.0,94648.0,0.6920987]
[1746436007460,0.0311,94649.0,94648.0,0.70254323]
[1746436007669,0.001,94649.0,94648.0,0.6920987]
[1746436008567,0.26883978,94650.0,94649.0,0.2112964]
[1746436008961,0.26883978,94650.0,94649.0,0.2443964]
[1746436009161,0.26883978,94650.0,94649.0,0.3643964]
[1746436009367,0.0618,94655.0,94654.0,0.2112853]
[1746436010167,0.0618,94655.0,94654.0,0.3312853]
[1746436010973,0.0628,94655.0,94654.0,0.3332853]
[1746436011764,0.0708,94655.0,94654.0,0.3342853]
[1746436012671,0.0708,94655.0,94654.0,0.6950853]
[1746436015368,0.0708,94655.0,94654.0,0.3342853]
[1746436015675,0.0708,94655.0,94654.0,0.6950853]
[1746436018774,0.1008,94655.0,94654.0,0.7282853]
[1746436019780,0.312083,94655.0,94654.0,0.7282853]
[1746436020167,0.1008,94655.0,94654.0,0.7282853]
[1746436020366,0.312083,94655.0,94654.0,0.7282853]
[1746436023477,0.312083,94655.0,94654.0,0.3674853]
[1746436023678,0.312083,94655.0,94654.0,0.7282853]
[1746436026372,0.1008,94655.0,94654.0,0.7282853]
[1746436026771,0.1008,94655.0,94654.0,0.7599853]
[1746436028680,0.312083,94655.0,94654.0,0.7599853]
[1746436030481,0.312083,94655.0,94654.0,0.3991853]
[1746436030670,0.312083,94655.0,94654.0,0.7599853]
[1746436031281,0.009,94655.0,94654.0,0.7599853]
[1746436031676,0.009,94655.0,94654.0,0.7910853]
[1746436052311,0.01162324,94686.0,94654.0,0.5798]
[1746436052495,0.0653,94684.0,94683.0,0.2112205]
[1746436052995,0.0653,94684.0,94683.0,0.2430205]
[1746436053196,0.0653,94684.0,94683.0,0.3630205]
[1746436053603,0.0703,94684.0,94683.0,0.3630205]
[1746436054302,0.0853,94684.0,94683.0,0.3640205]
[1746436055906,0.0773,94684.0,94683.0,0.3640205]
[1746436056103,0.0773,94684.0,94683.0,0.2440205]
[1746436056511,0.0723,94684.0,94683.0,0.2440205]
[1746436056806,0.0763,94684.0,94683.0,0.2450205]
[1746436070713,0.011,94684.0,94683.0,0.2450205]
[1746436071024,0.011,94684.0,94683.0,0.2768205]
[1746436071321,0.011,94684.0,94683.0,0.3968205]
[1746436072019,0.011,94684.0,94683.0,0.7576205]
[1746436074211,0.0419,94684.0,94683.0,0.7576205]
[1746436074418,0.0739,94684.0,94683.0,0.7576205]
[1746436076622,0.011,94684.0,94683.0,0.7576205]
[1746436079423,0.0749,94684.0,94683.0,0.7576205]
[1746436086722,0.0429,94684.0,94683.0,0.7576205]
[1746436090133,0.0429,94684.0,94683.0,0.6376205]
[1746436090929,0.0429,94684.0,94683.0,0.6058205]
[1746436091227,0.0429,94684.0,94683.0,0.5740205]
[1746436094328,0.2541183,94684.0,94683.0,0.5740205]
[1746436094530,0.2541183,94684.0,94683.0,0.2132205]
[1746436095235,0.1629,94684.0,94683.0,0.2132205]
[1746436095628,0.1629,94684.0,94683.0,0.2436205]
[1746436096227,0.0429,94684.0,94683.0,0.2436205]
[1746436100327,0.0738,94684.0,94683.0,0.2436205]
[1746436102435,0.0738,94684.0,94683.0,0.2132205]
[1746436102632,0.2850183,94684.0,94683.0,0.2132205]
[1746436103030,0.58122306,94684.0,94683.0,0.2132205]
[1746436103228,0.58122306,94684.0,94683.0,0.002]
[1746436103429,0.2112629,94668.0,94667.0,0.0528121]
[1746436103633,0.2753429,94668.0,94667.0,0.2640588]
[1746436103836,0.4809749,94668.0,94667.0,0.2640588]
[1746436104034,0.2112629,94664.0,94663.0,0.3608]
[1746436104237,0.2113098,94643.0,94642.0,0.36238491]
[1746436104537,0.6861898,94643.0,94642.0,0.00158491]
[1746436104733,0.99748713,94643.0,94642.0,0.00158491]
[1746436105240,1.11748713,94643.0,94642.0,0.00158491]
[1746436105539,1.11648713,94643.0,94642.0,0.00158491]
[1746436106440,1.11948713,94643.0,94642.0,0.00658491]
[1746436106936,1.11848713,94643.0,94642.0,0.00158491]
[1746436107144,1.11948713,94643.0,94642.0,0.00558491]
[1746436107941,1.18378713,94643.0,94642.0,0.00558491]
[1746436108240,1.07812713,94643.0,94642.0,0.00558491]
[1746436115137,0.95812713,94643.0,94642.0,0.00558491]
[1746436117342,1.07812713,94643.0,94642.0,0.00558491]
[1746436118146,0.95812713,94643.0,94642.0,0.00558491]
[1746436123852,0.92512713,94643.0,94642.0,0.00558491]
[1746436125752,1.02512713,94643.0,94642.0,0.00558491]
[1746436142071,1.02512713,94643.0,94642.0,0.12558491]
[1746436143075,1.02512713,94643.0,94642.0,0.00558491]
[1746436150879,0.66432713,94643.0,94642.0,0.00558491]
[1746436151083,1.02512713,94643.0,94642.0,0.00558491]
[1746436151884,1.11091442,94643.0,94642.0,0.00558491]
[1746436156285,0.75011442,94643.0,94642.0,0.00558491]
[1746436156588,1.11091442,94643.0,94642.0,0.00558491]
[1746436158085,1.11091442,94643.0,94642.0,0.12558491]
[1746436158288,1.02512713,94643.0,94642.0,0.12558491]
[1746436159087,1.02512713,94643.0,94642.0,0.00558491]
[1746436159476,0.66432713,94643.0,94642.0,0.00558491]
[1746436159678,1.02512713,94643.0,94642.0,0.00558491]
[1746436160086,1.02512713,94643.0,94642.0,0.12558491]
[1746436161288,1.02512713,94643.0,94642.0,0.00558491]
[1746436172495,0.99386713,94643.0,94642.0,0.00558491]
[1746436172887,1.17683408,94643.0,94642.0,0.00558491]
[1746436173086,1.17683408,94643.0,94642.0,0.12558491]
[1746436173587,1.20793408,94643.0,94642.0,0.12558491]
[1746436174290,1.20793408,94643.0,94642.0,0.00558491]
[1746436177099,1.20793408,94643.0,94642.0,0.12558491]
[1746436177292,0.84713408,94643.0,94642.0,0.12558491]
[1746436177493,1.20793408,94643.0,94642.0,0.12558491]
[1746436178085,1.20793408,94643.0,94642.0,0.00558491]
[1746436179400,1.02496713,94643.0,94642.0,0.00558491]
[1746436183196,1.02496713,94643.0,94642.0,0.12558491]
[1746436184106,1.02496713,94643.0,94642.0,0.00558491]
[1746436186206,1.02496713,94643.0,94642.0,0.12558491]
[1746436186805,1.20793408,94643.0,94642.0,0.12558491]
[1746436187198,1.20793408,94643.0,94642.0,0.00558491]
[1746436190306,1.20793408,94643.0,94642.0,0.00136163]
[1746436195315,1.02496713,94643.0,94642.0,0.00136163]
[1746436201123,1.20793408,94643.0,94642.0,0.00136163]
[1746436204119,1.02496713,94643.0,94642.0,0.00136163]
[1746436204324,1.29437997,94643.0,94642.0,0.00136163]
[1746436205223,1.29437997,94643.0,94642.0,0.12136163]
[1746436206223,1.29437997,94643.0,94642.0,0.00136163]
[1746436208133,1.29437997,94643.0,94642.0,0.12136163]
[1746436210138,1.29437997,94643.0,94642.0,0.00136163]
[1746436213137,1.29437997,94643.0,94642.0,0.12136163]
[1746436213338,1.26335997,94643.0,94642.0,0.12136163]
[1746436214539,1.29435997,94643.0,94642.0,0.12136163]
[1746436214733,0.0528341,94631.0,94625.0,0.0010568]
[1746436215032,0.2113813,94611.0,94607.0,0.0015855]
[1746436215233,0.2113858,94609.0,94607.0,0.0015855]
[1746436215438,0.211388,94608.0,94607.0,0.0015855]
[1746436216129,0.211388,94608.0,94607.0,0.1215855]
[1746436216834,0.205388,94608.0,94607.0,0.1215855]
[1746436217538,0.305388,94608.0,94607.0,0.1215855]
[1746436217839,0.306388,94608.0,94607.0,0.1275855]
[1746436218439,0.307388,94608.0,94607.0,0.1275855]
[1746436219540,0.31521931,94608.0,94607.0,0.1275855]
[1746436227141,0.31521931,94608.0,94607.0,0.1901855]
[1746436234945,0.31521931,94608.0,94607.0,0.4015757]
[1746436235449,0.31521931,94608.0,94607.0,0.1901855]
[1746436236043,0.31521931,94608.0,94607.0,0.4015757]
[1746436236244,0.00983131,94608.0,94607.0,0.4015757]
[1746436236444,0.22121931,94608.0,94607.0,0.4015757]
[1746436243355,0.25401931,94608.0,94607.0,0.4015757]
[1746436256258,0.04263131,94608.0,94607.0,0.4015757]
[1746436256454,0.00983131,94608.0,94607.0,0.4015757]
[1746436257366,0.00983131,94608.0,94607.0,0.41202839]
[1746436257751,0.00983131,94608.0,94607.0,0.4015757]
[1746436259363,0.00983131,94608.0,94607.0,0.7623757]
[1746436260261,0.22121931,94608.0,94607.0,0.7623757]
[1746436260558,0.25191931,94608.0,94607.0,0.7623757]
[1746436260765,0.04053131,94608.0,94607.0,0.7623757]
[1746436262857,0.00983131,94608.0,94607.0,0.7623757]
[1746436263459,0.22121931,94608.0,94607.0,0.7623757]
[1746436263667,0.00983131,94608.0,94607.0,0.7623757]
[1746436268855,0.04133131,94608.0,94607.0,0.7623757]
[1746436272475,0.25271931,94608.0,94607.0,0.7623757]
[1746436290992,0.33824108,94608.0,94607.0,0.7623757]
[1746436298098,0.25271931,94608.0,94607.0,0.7623757]
[1746436303199,0.25271931,94608.0,94607.0,0.4015757]
[1746436303400,0.25271931,94608.0,94607.0,0.7623757]
[1746436314406,0.33824108,94608.0,94607.0,0.7623757]
[1746436316307,0.33824108,94608.0,94607.0,0.4015757]
[1746436316500,0.33824108,94608.0,94607.0,0.7623757]
[1746436317905,0.33824108,94608.0,94607.0,0.4015757]
[1746436318204,0.33824108,94608.0,94607.0,0.7623757]
[1746436318408,0.12685308,94608.0,94607.0,0.7623757]
[1746436319302,0.09535308,94608.0,94607.0,0.7623757]
[1746436321128,0.00983131,94608.0,94607.0,0.7623757]
[1746436331505,0.22121931,94608.0,94607.0,0.6997757]
[1746436332316,0.22121931,94608.0,94607.0,0.5797757]
[1746436332514,0.28551931,94608.0,94607.0,0.5797757]
[1746436335120,0.40551931,94608.0,94607.0,0.5797757]
[1746436336138,0.28551931,94608.0,94607.0,0.5797757]
[1746436337120,0.40551931,94608.0,94607.0,0.5797757]
[1746436338320,0.28551931,94608.0,94607.0,0.2189757]
[1746436346529,0.28551931,94608.0,94607.0,0.2519757]
[1746436348629,0.07413131,94608.0,94607.0,0.2519757]
[1746436349222,0.07413131,94608.0,94607.0,0.3719757]
[1746436349426,0.07413131,94608.0,94607.0,0.4027757]
[1746436349932,0.04143131,94608.0,94607.0,0.4027757]
[1746436353638,0.04143131,94608.0,94607.0,0.7635757]
[1746436356738,0.04143131,94608.0,94607.0,0.4027757]
[1746436356937,0.04143131,94608.0,94607.0,0.7635757]
[1746436361642,0.25281931,94608.0,94607.0,0.7635757]
[1746436365945,0.04143131,94608.0,94607.0,0.7635757]
[1746436366444,0.25281931,94608.0,94607.0,0.7635757]
[1746436370544,0.04143131,94608.0,94607.0,0.7635757]
[1746436370939,0.25281931,94608.0,94607.0,0.7635757]
[1746436373437,0.45851917,94608.0,94607.0,0.4883855]
[1746436373753,0.53971917,94608.0,94607.0,0.4883855]
[1746436374136,0.53971917,94608.0,94607.0,0.3683855]
[1746436374445,0.53871917,94608.0,94607.0,0.5737757]
[1746436374758,0.53971917,94608.0,94607.0,0.5767757]
[1746436375054,0.53871917,94608.0,94607.0,0.5767757]
[1746436375356,0.53971917,94608.0,94607.0,0.5767757]
[1746436376245,0.67022841,94608.0,94607.0,0.5757757]
[1746436377245,0.55022841,94608.0,94607.0,0.5757757]
[1746436385752,0.65592841,94608.0,94607.0,0.0035855]
[1746436385957,0.65592841,94608.0,94599.0,0.2430072]